bitfinex/quotes_BTCUSD_20240620
["timestamp","ask_amount","ask_price","bid_price","bid_amount"]
[1718871162062,5.46261607,65926.0,65925.0,0.47520242]
[1718871162267,5.52101607,65926.0,65925.0,0.47520242]
[1718871163700,0.89031407,65926.0,65925.0,0.31484242]
[1718871163893,0.982642,65926.0,65925.0,0.31484242]
[1718871164317,5.64284464,65926.0,65925.0,0.31484242]
[1718871164518,5.84470527,65926.0,65925.0,0.31484242]
[1718871165324,5.89201046,65926.0,65925.0,0.31484242]
[1718871165523,1.09230846,65926.0,65925.0,0.31484242]
[1718871165723,5.72202918,65926.0,65925.0,0.31484242]
[1718871165931,0.98781909,65926.0,65925.0,0.31484242]
[1718871166137,5.78752109,65926.0,65925.0,0.31484242]
[1718871167290,5.89201046,65926.0,65925.0,0.31484242]
[1718871168575,5.89201046,65926.0,65925.0,0.27084242]
[1718871170401,5.89201046,65926.0,65925.0,0.24584242]
[1718871170576,5.89201046,65926.0,65925.0,0.20184242]
[1718871170976,6.06757158,65926.0,65925.0,0.15784242]
[1718871171182,6.19762127,65926.0,65925.0,0.15784242]
[1718871171400,6.09762127,65926.0,65925.0,0.15784242]
[1718871171869,6.19762127,65926.0,65925.0,0.11193001]
[1718871172077,6.19762127,65926.0,65925.0,0.11093001]
[1718871172287,6.19762127,65926.0,65925.0,0.10663466]
[1718871172514,6.20162127,65926.0,65925.0,0.08749266]
[1718871172918,6.20162127,65926.0,65925.0,0.08149266]
[1718871173571,6.24658827,65926.0,65925.0,0.020142]
[1718871173807,6.24658827,65926.0,65907.0,0.49215564]
[1718871173808,0.3762,65919.0,65910.0,0.4491]
[1718871174009,0.0584,65911.0,65910.0,0.4491]
[1718871174231,0.09890176,65911.0,65910.0,0.4491]
[1718871174907,4.89860376,65911.0,65910.0,0.45602236]
[1718871175145,0.44894342,65911.0,65910.0,0.45602236]
[1718871175397,5.32448542,65911.0,65910.0,0.45602236]
[1718871175851,5.42897479,65911.0,65910.0,0.45602236]
[1718871176541,5.61240717,65911.0,65910.0,0.45602236]
[1718871177926,5.61840717,65911.0,65910.0,0.45702236]
[1718871178357,5.48227998,65911.0,65910.0,0.45702236]
[1718871180183,5.61840717,65911.0,65910.0,0.45702236]
[1718871182033,5.48227998,65911.0,65910.0,0.45702236]
[1718871182266,5.61840717,65911.0,65910.0,0.45702236]
[1718871183621,5.78205118,65911.0,65910.0,0.45702236]
[1718871185939,5.78205118,65911.0,65910.0,0.00792236]
[1718871187394,5.8152261,65911.0,65910.0,0.00792236]
[1718871187613,5.7568261,65911.0,65910.0,0.00792236]
[1718871187829,5.8152261,65911.0,65910.0,0.00792236]
[1718871188032,5.85108222,65911.0,65910.0,0.00792236]
[1718871188205,5.65008159,65911.0,65910.0,0.00792236]
[1718871188415,5.85047864,65911.0,65910.0,0.00792236]
[1718871188826,5.85052315,65911.0,65910.0,0.00792236]
[1718871190607,5.79212315,65911.0,65910.0,0.00792236]
[1718871190825,5.85052315,65911.0,65910.0,0.00792236]
[1718871191205,5.85052315,65911.0,65910.0,0.001]
[1718871193936,1.05082115,65911.0,65910.0,0.001]
[1718871194266,0.82802654,65911.0,65910.0,0.001]
[1718871194673,1.05082115,65911.0,65910.0,0.001]
[1718871195187,5.85052315,65911.0,65910.0,0.001]
[1718871195391,5.79212315,65911.0,65910.0,0.001]
[1718871195633,5.85052315,65911.0,65910.0,0.001]
[1718871196223,5.81204579,65911.0,65910.0,0.001]
[1718871196348,5.81204579,65911.0,65910.0,0.001946]
[1718871196349,5.85040606,65911.0,65910.0,0.001946]
[1718871196558,5.85040606,65911.0,65910.0,0.00188616]
[1718871198087,6.23086718,65911.0,65910.0,0.00188616]
[1718871198299,6.55094219,65911.0,65910.0,0.00188616]
[1718871198636,6.35054514,65911.0,65910.0,0.00188616]
[1718871198841,6.54532261,65911.0,65910.0,0.000946]
[1718871199455,6.3924476,65911.0,65910.0,0.000946]
[1718871199656,6.54535252,65911.0,65910.0,0.000946]
[1718871199885,6.55635252,65911.0,65910.0,0.001946]
[1718871200622,6.4034476,65911.0,65910.0,0.001946]
[1718871200819,6.55812394,65911.0,65910.0,0.001946]
[1718871201463,6.54712394,65911.0,65910.0,0.000946]
[1718871201670,6.55712394,65911.0,65910.0,0.001946]
[1718871202374,6.40421902,65911.0,65910.0,0.001946]
[1718871205353,6.40421902,65911.0,65907.0,0.00948199]
[1718871205554,0.0584,65908.0,65907.0,0.00948199]
[1718871205752,0.56033185,65908.0,65907.0,0.00948199]
[1718871206157,5.36003385,65908.0,65907.0,0.00948199]
[1718871206313,0.62624542,65908.0,65907.0,0.00948199]
[1718871206523,0.62624542,65908.0,65907.0,0.01048199]
[1718871206772,5.58806563,65908.0,65907.0,0.00694081]
[1718871206986,5.91164247,65908.0,65907.0,0.00694081]
[1718871207197,0.19306386,65908.0,65907.0,0.74546696]
[1718871207408,0.13600246,65924.0,65920.0,0.4647]
[1718871207609,0.08573796,65921.0,65916.0,0.02]
[1718871207837,0.4542,65930.0,65916.0,0.02]
[1718871207838,0.17175419,65918.0,65916.0,0.02]
[1718871208693,0.24759419,65918.0,65916.0,0.02]
[1718871208918,0.11335419,65917.0,65916.0,0.02]
[1718871209414,0.21335304,65917.0,65916.0,0.02]
[1718871209819,0.21335304,65917.0,65915.0,0.02173231]
[1718871209820,4.899702,65917.0,65915.0,0.02173231]
[1718871210024,0.1,65916.0,65915.0,0.02173231]
[1718871211003,0.1584,65916.0,65915.0,0.02173231]
[1718871211318,0.1584,65916.0,65915.0,0.04173231]
[1718871211915,0.6584,65916.0,65915.0,0.04173231]
[1718871212680,0.6584,65916.0,65915.0,0.003]
[1718871213120,0.6584,65916.0,65915.0,0.001782]
[1718871213323,0.69936095,65916.0,65915.0,0.02173231]
[1718871213532,0.69936095,65916.0,65915.0,0.04173231]
[1718871214042,4.99906295,65916.0,65915.0,0.04173231]
[1718871214788,4.94066295,65916.0,65915.0,0.04173231]
[1718871215193,5.0319206,65916.0,65915.0,0.04573231]
[1718871215599,5.0319206,65916.0,65915.0,0.04173231]
[1718871215993,5.0319206,65916.0,65915.0,0.04573231]
[1718871216530,4.99095965,65916.0,65915.0,0.04573231]
[1718871216743,4.99095965,65916.0,65915.0,0.04173231]
[1718871216952,4.99095965,65916.0,65915.0,0.04673231]
[1718871217154,4.99568855,65916.0,65915.0,0.04673231]
[1718871217744,4.93728855,65916.0,65915.0,0.04673231]
[1718871217958,4.98259605,65916.0,65915.0,0.04673231]
[1718871218245,1.53449405,65916.0,65915.0,0.50983231]
[1718871218477,0.12449405,65916.0,65915.0,0.50983231]
[1718871218626,0.8217289,65916.0,65915.0,0.51784885]
[1718871218827,0.9217289,65916.0,65915.0,0.51784885]
[1718871219083,0.9217289,65916.0,65915.0,0.49284885]
[1718871219416,0.9217289,65916.0,65915.0,0.56963374]
[1718871219927,0.9217289,65916.0,65915.0,0.56563374]
[1718871220229,0.917,65916.0,65915.0,0.56563374]
[1718871220429,0.92272862,65916.0,65915.0,0.57363374]
[1718871222110,0.96716664,65916.0,65915.0,0.57363374]
[1718871222514,0.96716664,65916.0,65915.0,0.57567171]
[1718871222717,0.96716664,65916.0,65915.0,0.52288682]
[1718871222718,0.15016664,65916.0,65915.0,0.52288682]
[1718871222926,0.18420584,65916.0,65915.0,0.52288682]
[1718871223773,0.18420584,65916.0,65915.0,0.50288682]
[1718871223933,4.84462387,65916.0,65915.0,0.50288682]
[1718871224119,4.70860884,65916.0,65915.0,0.03978682]
[1718871224315,4.70860884,65916.0,65915.0,0.02973231]
[1718871224519,4.70860884,65916.0,65915.0,0.04973231]
[1718871224722,4.7497595,65916.0,65915.0,0.04973231]
[1718871225840,4.8081595,65916.0,65915.0,0.04973231]
[1718871227583,4.8950516,65916.0,65915.0,0.04973231]
[1718871229364,0.3706486,65916.0,65915.0,0.04973231]
[1718871229562,0.47253437,65916.0,65915.0,0.008]
[1718871229767,0.3366094,65916.0,65915.0,0.008]
[1718871230339,0.2487173,65916.0,65911.0,0.001782]
[1718871230562,0.0584,65911.0,65910.0,0.01995031]
[1718871230743,0.16312862,65911.0,65910.0,0.01995031]
[1718871231152,0.16312862,65911.0,65910.0,0.02173231]
[1718871232592,0.23896862,65911.0,65910.0,0.02173231]
[1718871233394,0.23996862,65911.0,65910.0,0.01995031]
[1718871233797,0.23996862,65911.0,65910.0,0.02173231]
[1718871234621,0.23996862,65911.0,65907.0,0.02589112]
[1718871234818,0.0584,65908.0,65907.0,0.00594081]
[1718871235024,0.06312862,65908.0,65907.0,0.00594081]
[1718871236049,0.19905738,65908.0,65907.0,0.00594081]
[1718871236199,0.29905912,65908.0,65907.0,0.00594081]
[1718871236400,0.16313036,65908.0,65907.0,0.00594081]
[1718871237199,0.16313036,65908.0,65907.0,0.00894081]
[1718871237399,0.06313036,65908.0,65907.0,0.00894081]
[1718871237583,0.16313036,65908.0,65907.0,0.00894081]
[1718871237770,0.16313036,65908.0,65907.0,0.00594081]
[1718871238203,0.16913036,65908.0,65907.0,0.00594081]
[1718871238810,0.0691307,65908.0,65907.0,0.00594081]
[1718871239512,0.0631307,65908.0,65907.0,0.00594081]
[1718871239866,0.0691307,65908.0,65907.0,0.00594081]
[1718871240697,0.2858307,65908.0,65907.0,0.00594081]
[1718871241026,0.3858307,65908.0,65907.0,0.00594081]
[1718871241382,0.6528307,65908.0,65907.0,0.00594081]
[1718871242039,0.7010487,65908.0,65907.0,0.00589654]
[1718871242648,0.6528307,65908.0,65907.0,0.00589654]
[1718871242869,0.6426487,65908.0,65907.0,0.00589654]
[1718871243199,0.84760982,65908.0,65907.0,0.00589654]
[1718871243389,0.87060982,65908.0,65907.0,0.00589654]
[1718871243593,1.02342389,65908.0,65907.0,0.00589654]
[1718871244029,0.87960982,65908.0,65907.0,0.00689654]
[1718871244157,0.2203487,65908.0,65907.0,0.00689654]
[1718871244392,0.77914125,65908.0,65907.0,0.00589654]
[1718871244600,0.6847487,65908.0,65907.0,0.00589654]
[1718871244795,0.6937487,65908.0,65907.0,0.00689654]
[1718871246237,0.6847487,65908.0,65907.0,0.00589654]
[1718871246643,0.6987487,65908.0,65907.0,0.00689654]
[1718871246872,0.048218,65907.0,65906.0,8.96793853]
[1718871247056,0.1529487,65907.0,65906.0,8.96793853]
[1718871248164,0.30550982,65907.0,65906.0,8.96793853]
[1718871248363,0.32850982,65907.0,65906.0,8.96793853]
[1718871248923,0.32851002,65907.0,65906.0,8.92235853]
[1718871249586,0.32851002,65907.0,65906.0,8.86589853]
[1718871250290,0.34251025,65907.0,65906.0,8.86689853]
[1718871251017,0.32851025,65907.0,65906.0,8.86589853]
[1718871251534,0.34251025,65907.0,65906.0,8.86689853]
[1718871252026,0.32851025,65907.0,65906.0,8.86589853]
[1718871252458,0.3487709,65907.0,65906.0,8.86589853]
[1718871253847,0.3607709,65907.0,65906.0,8.86689853]
[1718871254194,0.3747709,65907.0,65906.0,8.86789853]
[1718871254813,4.8991739,65907.0,65906.0,8.86789853]
[1718871254981,4.91474442,65907.0,65906.0,8.86789853]
[1718871255726,4.99623785,65907.0,65906.0,8.86789853]
[1718871255859,5.09623785,65907.0,65906.0,8.86789853]
[1718871256277,4.99623785,65907.0,65906.0,8.86789853]
[1718871256472,5.09841099,65907.0,65906.0,8.86789853]
[1718871256675,5.09841099,65907.0,65906.0,8.71696965]
[1718871256676,5.19841099,65907.0,65906.0,8.71696965]
[1718871257066,5.71406068,65907.0,65906.0,8.20608761]
[1718871257234,5.71406068,65907.0,65906.0,8.15608761]
[1718871257439,5.71406068,65907.0,65906.0,8.08563061]
[1718871257614,5.71406068,65907.0,65906.0,8.05863061]
[1718871258028,5.71406068,65907.0,65906.0,7.97132061]
[1718871258231,5.61406068,65907.0,65906.0,7.93432061]
[1718871258436,5.77246068,65907.0,65906.0,7.93432061]
[1718871259078,5.77068287,65907.0,65906.0,7.93432061]
[1718871259310,5.77068287,65907.0,65906.0,7.68373128]
[1718871259495,5.77068287,65907.0,65906.0,7.22933128]
[1718871259706,5.71228287,65907.0,65906.0,7.22933128]
[1718871259883,5.77068287,65907.0,65906.0,7.22933128]
[1718871260406,5.77068287,65907.0,65906.0,6.65765145]
[1718871260407,1.26213732,65907.0,65906.0,6.65765145]
[1718871260547,1.18912769,65907.0,65906.0,6.65356902]
[1718871260774,5.71281824,65907.0,65906.0,6.65356902]
[1718871260969,5.72269674,65907.0,65906.0,6.65356902]
[1718871261170,5.71069674,65907.0,65906.0,6.60156902]
[1718871261490,5.73250686,65907.0,65906.0,6.60156902]
[1718871261694,5.73250686,65907.0,65906.0,6.59654188]
[1718871261920,5.74650686,65907.0,65906.0,6.59754188]
[1718871262126,5.73450686,65907.0,65906.0,6.59654188]
[1718871262336,5.78047931,65907.0,65906.0,6.59554188]
[1718871262503,5.78047931,65907.0,65906.0,6.59654188]
[1718871262504,5.71098588,65907.0,65906.0,6.59654188]
[1718871262707,5.80940635,65907.0,65906.0,6.59654188]
[1718871263201,5.77622748,65907.0,65906.0,6.59554188]
[1718871263421,0.71773974,65907.0,65906.0,6.59554188]
[1718871263626,0.65078357,65907.0,65906.0,6.59554188]
[1718871263832,4.95833277,65907.0,65906.0,6.59554188]
[1718871264030,4.8729424,65907.0,65906.0,6.59554188]
[1718871264287,4.9211604,65907.0,65906.0,6.59554188]
[1718871264491,4.85028829,65907.0,65906.0,6.59554188]
[1718871264674,4.86428829,65907.0,65906.0,6.59554188]
[1718871265083,4.76106598,65907.0,65906.0,6.59554188]
[1718871265306,4.90546598,65907.0,65906.0,6.81304188]
[1718871265464,4.91946598,65907.0,65906.0,6.81304188]
[1718871265647,4.93346598,65907.0,65906.0,6.81304188]
[1718871266367,4.93346598,65907.0,65906.0,6.59554188]
[1718871267556,4.79723948,65907.0,65906.0,6.59554188]
[1718871268487,4.86876065,65907.0,65906.0,6.59554188]
[1718871268685,4.79723948,65907.0,65906.0,6.59554188]
[1718871269256,0.21443648,65907.0,65906.0,6.59554188]
[1718871269650,0.15267012,65907.0,65906.0,6.59554188]
[1718871269952,0.16865198,65907.0,65906.0,6.59554188]
[1718871271451,0.32163444,65907.0,65906.0,6.59554188]
[1718871273382,0.16865198,65907.0,65906.0,6.59554188]
[1718871274805,0.16865198,65907.0,65906.0,6.87244188]
[1718871275003,0.15267012,65907.0,65906.0,6.87244188]
[1718871275224,0.05267012,65907.0,65906.0,6.87244188]
[1718871275432,0.05267012,65907.0,65906.0,7.09424188]
[1718871275583,0.03867012,65907.0,65906.0,7.09424188]
[1718871275933,0.03067012,65907.0,65906.0,7.09424188]
[1718871276687,0.03867012,65907.0,65906.0,7.09424188]
[1718871281514,4.56307312,65907.0,65906.0,7.09424188]
[1718871281717,4.69213413,65907.0,65906.0,7.09424188]
[1718871281914,4.72977248,65907.0,65906.0,7.09424188]
[1718871282148,4.79153884,65907.0,65906.0,7.09424188]
[1718871283236,4.79153884,65907.0,65906.0,6.87244188]
[1718871283436,4.79153884,65907.0,65906.0,6.59554188]
[1718871283563,4.85210504,65907.0,65906.0,6.59554188]
[1718871284874,4.85442185,65907.0,65906.0,6.59554188]
[1718871286010,4.80028416,65907.0,65906.0,6.59554188]
[1718871286232,4.85439027,65907.0,65906.0,6.59554188]
[1718871290598,4.85439027,65907.0,65906.0,7.08224188]
[1718871290808,0.70198727,65907.0,65906.0,7.10224188]
[1718871291031,0.57067398,65907.0,65906.0,7.12397419]
[1718871291258,0.10043648,65907.0,65906.0,7.12397419]
[1718871291463,1.12267012,65907.0,65906.0,7.12397419]
[1718871291665,1.11667012,65907.0,65906.0,7.12397419]
[1718871292040,1.12167012,65907.0,65906.0,7.12397419]
[1718871292245,1.22167012,65907.0,65906.0,7.12397419]
[1718871292603,1.21667012,65907.0,65906.0,7.12397419]
[1718871294007,0.13267012,65907.0,65906.0,7.12397419]
[1718871294209,0.02467012,65907.0,65906.0,7.12397419]
[1718871295478,0.52467012,65907.0,65906.0,7.12397419]
[1718871295714,0.12467012,65907.0,65906.0,7.12397419]
[1718871296438,0.62467012,65907.0,65906.0,7.12397419]
[1718871296658,0.12467012,65907.0,65906.0,7.12397419]
[1718871296890,0.02467012,65907.0,65906.0,7.12397419]
[1718871297120,0.12467012,65907.0,65906.0,7.12397419]
[1718871298046,0.62467012,65907.0,65906.0,7.12397419]
[1718871298283,0.12460275,65907.0,65906.0,7.12397419]
[1718871299708,0.02460275,65907.0,65906.0,7.12397419]
[1718871300182,0.02460275,65907.0,65906.0,7.27652833]
[1718871301110,0.02460275,65907.0,65906.0,7.12397419]
[1718871304234,0.02460275,65907.0,65906.0,7.13397419]
[1718871305207,0.02460275,65907.0,65906.0,7.28653531]
[1718871305922,0.02460275,65907.0,65906.0,7.27653531]
[1718871306133,0.02460275,65907.0,65906.0,7.12397419]
[1718871306584,0.02460275,65907.0,65906.0,6.91187419]
[1718871306787,0.02460275,65907.0,65906.0,6.61727419]
[1718871307004,0.02460275,65907.0,65906.0,6.59732388]
[1718871307410,0.29351609,65907.0,65906.0,6.59732388]
[1718871307629,0.35441564,65907.0,65906.0,6.59732388]
[1718871307856,0.32270974,65907.0,65906.0,6.59732388]
[1718871308262,0.21842095,65907.0,65906.0,6.59732388]
[1718871308664,0.21942095,65907.0,65906.0,6.59732388]
[1718871309043,0.18671505,65907.0,65906.0,6.59732388]
[1718871309254,0.08771505,65907.0,65906.0,6.59732388]
[1718871309441,0.02660275,65907.0,65906.0,6.59732388]
[1718871310880,0.62042095,65907.0,65906.0,6.59732388]
[1718871311082,0.18771505,65907.0,65906.0,6.59732388]
[1718871311526,3.61171505,65907.0,65906.0,6.59554188]
[1718871311729,3.64442095,65907.0,65906.0,6.59554188]
[1718871311934,0.22042095,65907.0,65906.0,6.59554188]
[1718871312153,0.18771505,65907.0,65906.0,6.59554188]
[1718871312300,0.12660275,65907.0,65906.0,6.59554188]
[1718871312512,0.12460275,65907.0,65906.0,6.59554188]
[1718871312872,4.68171165,65907.0,65906.0,6.59554188]
[1718871313079,4.74347801,65907.0,65906.0,6.59554188]
[1718871313485,5.24187801,65907.0,65906.0,6.59554188]
[1718871313688,0.87071304,65907.0,65906.0,6.59554188]
[1718871313897,5.28652632,65907.0,65906.0,6.59554188]
[1718871314095,5.30299031,65907.0,65906.0,6.59554188]
[1718871314317,5.34085451,65907.0,65906.0,6.59554188]
[1718871315143,5.34485451,65907.0,65906.0,6.59554188]
[1718871315348,5.34585451,65907.0,65906.0,6.59554188]
[1718871315554,5.34085451,65907.0,65906.0,6.59554188]
[1718871315763,5.33985451,65907.0,65906.0,6.59554188]
[1718871315962,5.34585451,65907.0,65906.0,6.59554188]
[1718871316121,5.35385451,65907.0,65906.0,6.59554188]
[1718871316329,5.34785451,65907.0,65906.0,6.59554188]
[1718871316530,5.33985451,65907.0,65906.0,6.59554188]
[1718871316884,5.54818324,65907.0,65906.0,6.50920188]
[1718871317050,5.67118324,65907.0,65906.0,6.50920188]
[1718871317245,5.67118324,65907.0,65906.0,6.43333188]
[1718871317447,5.57118324,65907.0,65906.0,6.43333188]
[1718871318845,5.50941688,65907.0,65906.0,6.43333188]
[1718871318965,5.58890825,65907.0,65906.0,6.43333188]
[1718871319804,5.58890825,65907.0,65906.0,6.39833188]
[1718871319982,5.68890825,65907.0,65906.0,6.39325599]
[1718871320195,5.68890825,65907.0,65906.0,6.36925599]
[1718871320981,5.58890825,65907.0,65906.0,6.36925599]
[1718871324478,5.58883308,65907.0,65906.0,6.36925599]
[1718871325260,1.06443008,65907.0,65906.0,6.36925599]
[1718871325442,5.47663581,65907.0,65906.0,6.36925599]
[1718871325678,0.98493871,65907.0,65906.0,6.36925599]
[1718871325977,5.43877161,65907.0,65906.0,6.36925599]
[1718871326201,0.94707451,65907.0,65906.0,6.36925599]
[1718871326611,5.47147751,65907.0,65906.0,6.36925599]
[1718871327308,5.55096888,65907.0,65906.0,6.36925599]
[1718871328114,5.58883308,65907.0,65906.0,6.36925599]
[1718871328879,5.59158328,65907.0,65906.0,6.36925599]
[1718871330721,1.06718028,65907.0,65906.0,6.33425599]
[1718871330917,1.03323184,65907.0,65906.0,6.33425599]
[1718871331298,1.01160955,65907.0,65906.0,6.33425599]
[1718871331501,5.53601255,65907.0,65906.0,6.33425599]
[1718871331689,5.55371908,65907.0,65906.0,6.33425599]
[1718871332453,5.05631908,65907.0,65906.0,6.33425599]
[1718871332720,5.09418328,65907.0,65906.0,6.33425599]
[1718871333310,0.56978028,65907.0,65906.0,6.33425599]
[1718871333636,0.55207375,65907.0,65906.0,6.33425599]
[1718871333834,0.48945379,65907.0,65906.0,6.33425599]
[1718871334133,5.03156332,65907.0,65906.0,6.30004407]
[1718871335344,5.09418328,65907.0,65906.0,6.30004407]
[1718871335757,5.59588328,65907.0,65906.0,6.30004407]
[1718871336075,1.07148028,65907.0,65906.0,6.30004407]
[1718871336244,1.05377375,65907.0,65906.0,6.30004407]
[1718871336448,1.04777375,65907.0,65906.0,6.30004407]
[1718871336782,5.50955679,65907.0,65906.0,6.26425599]
[1718871337000,5.52726332,65907.0,65906.0,6.26425599]
[1718871337984,5.71053101,65907.0,65906.0,5.88233344]
[1718871338142,5.52282323,65907.0,65906.0,5.8803743]
[1718871338347,5.52282323,65907.0,65906.0,5.87428505]
[1718871338348,5.65387854,65907.0,65906.0,5.87428505]
[1718871338561,1.14347554,65907.0,65906.0,5.87428505]
[1718871338765,5.66787854,65907.0,65906.0,5.87428505]
[1718871338986,5.66787854,65907.0,65906.0,5.79828505]
[1718871338987,5.68198393,65907.0,65906.0,5.79828505]
[1718871339191,5.69598393,65907.0,65906.0,5.79071583]
[1718871339399,5.70998393,65907.0,65906.0,5.71526153]
[1718871339678,5.70998393,65907.0,65906.0,5.71321462]
[1718871339878,5.68198393,65907.0,65906.0,5.71321462]
[1718871340548,5.78198393,65907.0,65906.0,5.71321462]
[1718871340755,5.78101578,65907.0,65906.0,5.71321462]
[1718871341205,1.25661278,65907.0,65906.0,5.71321462]
[1718871341346,1.25661278,65907.0,65906.0,5.71025227]
[1718871341545,5.79130925,65907.0,65906.0,5.71025227]
[1718871341755,1.27061278,65907.0,65906.0,5.7078878]
[1718871341951,1.25590504,65907.0,65906.0,5.7078878]
[1718871342152,1.26990504,65907.0,65906.0,5.7078878]
[1718871342337,5.80830804,65907.0,65906.0,5.7078878]
[1718871342533,1.28390504,65907.0,65906.0,5.7078878]
[1718871342882,1.18705671,65907.0,65906.0,5.7078878]
[1718871343265,1.17305671,65907.0,65906.0,5.7078878]
[1718871343913,1.07335105,65907.0,65906.0,5.7078878]
[1718871344104,1.05935105,65907.0,65906.0,5.7078878]
[1718871344721,1.07335105,65907.0,65906.0,5.7078878]
[1718871345897,1.08735105,65907.0,65906.0,5.7078878]
[1718871346206,1.08735105,65907.0,65906.0,5.6828878]
[1718871348113,1.08735105,65907.0,65906.0,5.5978878]
[1718871348311,1.07335105,65907.0,65906.0,5.5978878]
[1718871348964,1.05935105,65907.0,65906.0,5.5978878]
[1718871349279,1.09070801,65907.0,65906.0,5.5978878]
[1718871349484,1.19041367,65907.0,65906.0,5.5978878]
[1718871349645,1.20441367,65907.0,65906.0,5.5978878]
[1718871350581,5.80830804,65907.0,65906.0,5.5478878]
[1718871350987,5.20660804,65907.0,65906.0,5.5478878]
[1718871351163,5.71360804,65907.0,65906.0,5.5478878]
[1718871351362,1.18920504,65907.0,65906.0,5.5478878]
[1718871351567,1.14280299,65907.0,65906.0,5.5478878]
[1718871351746,5.76720599,65907.0,65906.0,5.5478878]
[1718871352232,5.76720599,65907.0,65906.0,5.4958878]
[1718871352434,5.76720599,65907.0,65906.0,5.39127393]
[1718871352811,1.24280299,65907.0,65906.0,5.32227493]
[1718871353017,1.22544603,65907.0,65906.0,5.32227493]
[1718871353291,5.76720599,65907.0,65906.0,5.31307493]
[1718871353492,5.81360804,65907.0,65906.0,5.28926504]
[1718871353621,5.81360804,65907.0,65906.0,5.27652504]
[1718871353825,1.28920504,65907.0,65906.0,4.77024316]
[1718871354028,1.10461572,65907.0,65906.0,4.67784316]
[1718871354233,5.62901872,65907.0,65906.0,4.67784316]
[1718871354435,1.09061572,65907.0,65906.0,4.67784316]
[1718871354766,1.09061572,65907.0,65906.0,4.65038538]
[1718871355099,1.10461572,65907.0,65906.0,4.59138538]
[1718871355273,1.10461572,65907.0,65906.0,4.50738538]
[1718871355274,1.1367019,65907.0,65906.0,4.50738538]
[1718871355543,1.1087019,65907.0,65906.0,4.50738538]
[1718871355819,1.1227019,65907.0,65906.0,4.50738538]
[1718871356034,1.1227019,65907.0,65906.0,4.48789438]
[1718871356248,1.1227019,65907.0,65906.0,4.46189438]
[1718871356420,1.1367019,65907.0,65906.0,4.46189438]
[1718871356625,1.1367019,65907.0,65906.0,4.43589438]
[1718871356829,1.08651458,65907.0,65906.0,4.43589438]
[1718871357033,1.10051458,65907.0,65906.0,4.38590897]
[1718871357188,1.11953618,65907.0,65906.0,4.38590897]
[1718871357388,1.10137458,65907.0,65906.0,4.38195887]
[1718871357610,1.10137458,65907.0,65906.0,4.22846887]
[1718871358022,1.11953618,65907.0,65906.0,4.22846887]
[1718871358246,1.10137458,65907.0,65906.0,4.22846887]
[1718871359296,1.10137458,65907.0,65906.0,4.20336887]
[1718871360236,1.10137458,65907.0,65906.0,4.10636887]
[1718871360689,1.10137458,65907.0,65906.0,4.06693174]
[1718871361439,1.10137458,65907.0,65906.0,4.04293174]
[1718871362916,1.11993072,65907.0,65906.0,4.04293174]
[1718871363133,1.15195644,65907.0,65906.0,4.01834726]
[1718871363347,5.67635944,65907.0,65906.0,4.01834726]
[1718871363897,1.21525652,65907.0,65906.0,3.98773668]
[1718871364115,1.19670038,65907.0,65906.0,3.98773668]
[1718871364304,1.15511704,65907.0,65906.0,3.98773668]
[1718871364505,1.16142692,65907.0,65906.0,3.96373668]
[1718871364912,1.17998306,65907.0,65906.0,3.96373668]
[1718871365652,1.26010728,65907.0,65906.0,3.96373668]
[1718871366066,5.81114875,65907.0,65906.0,3.96373668]
[1718871366463,1.28674575,65907.0,65906.0,3.96373668]
[1718871366813,1.26818961,65907.0,65906.0,3.96373668]
[1718871367023,1.20488953,65907.0,65906.0,3.96373668]
[1718871367201,1.14332145,65907.0,65906.0,3.87256668]
[1718871367416,1.11668298,65907.0,65906.0,3.87256668]
[1718871367786,1.116683,65907.0,65906.0,3.87256668]
[1718871367988,1.116683,65907.0,65906.0,3.70707668]
[1718871368187,1.116683,65907.0,65906.0,3.59554624]
[1718871368390,1.17998308,65907.0,65906.0,3.59243593]
[1718871368602,1.3101073,65907.0,65906.0,3.55299722]
[1718871368798,5.79340491,65907.0,65906.0,3.55299722]
[1718871369228,5.81383535,65907.0,65906.0,3.55299722]
[1718871369423,1.28943235,65907.0,65906.0,3.55299722]
[1718871370670,1.33078682,65907.0,65906.0,3.55299722]
[1718871370875,1.57593075,65907.0,65906.0,3.47411529]
[1718871371076,2.30302823,65907.0,65906.0,3.47411529]
[1718871371558,2.34459546,65907.0,65906.0,3.47411529]
[1718871372092,2.18705257,65907.0,65906.0,3.47411529]
[1718871372255,2.24790757,65907.0,65906.0,3.47411529]
[1718871372625,2.2717268,65907.0,65906.0,3.47411529]
[1718871373479,2.16486224,65907.0,65906.0,3.47411529]
[1718871374029,2.12456216,65907.0,65906.0,3.47411529]
[1718871374595,2.10600602,65907.0,65906.0,3.47411529]
[1718871374813,2.1185499,65907.0,65906.0,3.47411529]
[1718871375253,1.17340597,65907.0,65906.0,3.47411529]
[1718871375478,1.18926342,65907.0,65906.0,3.47411529]
[1718871375955,5.71366642,65907.0,65906.0,3.47411529]
[1718871376169,5.73812633,65907.0,65906.0,3.47411529]
[1718871376513,1.29384755,65907.0,65906.0,3.47411529]
[1718871377670,1.24058914,65907.0,65906.0,3.47411529]
[1718871377885,1.21938764,65907.0,65906.0,3.47411529]
[1718871378106,1.13926342,65907.0,65906.0,3.47411529]
[1718871380422,1.38440735,65907.0,65906.0,3.47411529]
[1718871381252,1.38440735,65907.0,65906.0,3.39523531]
[1718871381998,1.37186347,65907.0,65906.0,3.39523531]
[1718871382200,1.12671954,65907.0,65906.0,3.39523531]
[1718871383296,1.14792104,65907.0,65906.0,3.39523531]
[1718871384227,1.10656657,65907.0,65906.0,3.39523531]
[1718871385726,1.16506657,65907.0,65906.0,3.39523531]
[1718871386134,1.41056593,65907.0,65906.0,3.39523531]
[1718871386922,1.38936443,65907.0,65906.0,3.39523531]
[1718871388298,1.38936443,65907.0,65906.0,3.29663793]
[1718871389989,1.38934157,65907.0,65906.0,3.29663793]
[1718871390187,0.82384157,65907.0,65906.0,3.29663793]
[1718871390427,0.59046302,65907.0,65906.0,3.82063793]
[1718871392021,1.06259831,65907.0,65906.0,3.16124911]
[1718871392230,1.14299831,65907.0,65906.0,3.16124911]
[1718871392651,1.18892536,65907.0,65906.0,3.16124911]
[1718871393049,1.18749443,65907.0,65906.0,3.08236859]
[1718871393495,1.18749443,65907.0,65906.0,3.01663041]
[1718871393496,1.18896432,65907.0,65906.0,3.01663041]
[1718871393745,1.24746432,65907.0,65906.0,3.01663041]
[1718871394099,1.24889525,65907.0,65906.0,3.01663041]
[1718871394965,1.94889525,65907.0,65906.0,3.01663041]
[1718871395400,1.93489525,65907.0,65906.0,3.01663041]
[1718871395558,2.04452268,65907.0,65906.0,3.01663041]
[1718871395757,2.05852268,65907.0,65906.0,3.01663041]
[1718871395959,2.07252268,65907.0,65906.0,3.01663041]
[1718871396164,2.06327916,65907.0,65906.0,3.01663041]
[1718871396590,2.06328347,65907.0,65906.0,3.01663041]
[1718871396799,2.07728347,65907.0,65906.0,3.01663041]
[1718871397399,1.95365604,65907.0,65906.0,3.01663041]
[1718871397614,2.05863585,65907.0,65906.0,3.01663041]